Cogmind - Beta 10.1 @@@ ROGUE MODE // 2021.04.08 @ 06:25:09 Player: Farfid Result: Destroyed by P-70 Sage via exploding Fusion Modulator Performance ------------- Evolutions (6) 3000 Regions Visited (16) 3200 Robots Destroyed (196) 980 Value Destroyed (8588) 8588 Prototype IDs (12) 240 Alien Tech Used (0) 0 Bonus (2283) 2283 TOTAL SCORE: 18291 Bonus ------- High Alert Combat Kills 121 Follower Combat Kills 740 Entered Garrisons 600 Used RIF Installer 1000 Friendly Fire -178 Cogmind --------- Core Integrity 0/1150 Matter 363/550 Energy 234/315 System Corruption 10% Temperature Cool (32) Movement Rolling (120) Ox2 Location -4/Factory Parts ------- > --- POWER (3) -------- Neutrino Core > --- PROPULSION (4) --- Advanced Medium Treads Advanced Medium Treads Compact Wheel > --- UTILITY (9) ------ Improved Coolant Injector Matter Compressor Advanced Signal Interpreter Advanced ECM Suite Relay Coupler [Grunt] (3) Improved Integration Mediator > --- WEAPON (3) ------- Heavy Disruptor Cannon > --- INVENTORY (4) ---- Matter Compressor (250) Relay Coupler [Demolisher] (25) Peak State ------------ > --- POWER ------------ Neutrino Core Micro Fission Core Micro Fission Core > --- PROPULSION ------- Advanced Medium Treads Wheel Compact Wheel Compact Wheel > --- UTILITY ---------- Advanced Heat Sink Advanced Heat Sink Advanced Heat Sink High-capacity Storage Unit High-capacity Storage Unit Advanced Signal Interpreter Advanced Transmission Jammer Advanced Thermal Shield Long-range Tractor Beam > --- WEAPON ----------- Electrolaser Coil Gun Enhanced Coil Gun > --- INVENTORY -------- Light Antimatter Reactor Light Antimatter Reactor Wheel Compact Wheel Compact Wheel Compact Wheel Coolant Injector Improved Coolant Injector High-capacity Storage Unit High-capacity Storage Unit Matter Compressor Improved Kinecellerator Plasma Rifle Improved Heavy Machine Gun Improved Proton Missile Launcher Grenade Launcher Improved Remote Datajack Improved Remote Datajack Phasing Sabre [Rating: 87] Favorites ----------- Power Light Angular Momentum Engine Engine Light Angular Momentum Engine Power Core Micro Fission Core Reactor Light Antimatter Reactor Propulsion Wheel Treads Light Treads Leg Flexi-carbon Leg Wheel Wheel Hover Unit Antigrav System Utility High-capacity Storage Unit Device Advanced Heat Sink Storage High-capacity Storage Unit Processor Advanced Signal Interpreter Hackware Relay Coupler [Grunt] Protection Layered Medium Armor Plating Weapon Autogun Energy Gun Gatling Laser Energy Cannon Ion Cannon Ballistic Gun Autogun Ballistic Cannon Hypervelocity Gauss Cannon Launcher Grenade Launcher Special Weapon Improved Remote Datajack Slashing Weapon Katana Build | -11 -10 -9 -8 -8 -7 -7 -7 -7 -6 -6 -5 -5 -5 -4 -4 -4 ------- Run | Scr Mat Mat Mat Sto Fac Gar Fac Gar Fac Ext Fac Upp Upp Fac Gar Fac Slots Evolved 12 | . . 2 2 . 2 . . . 2 . 2 . . 2 . . Power 2 | . . . . . 1 . . . . . . . . 1 . . Propulsion 2 | . . . 2 . . . . . . . . . . . . . Utility 7 | . . 2 . . . . . . 2 . 2 . . 1 . . Weapon 1 | . . . . . 1 . . . . . . . . . . . Parts Attached 326 | 6 1 19 14 43 5 12 3 18 54 21 42 1 6 41 30 10 Power 36 | 1 . 3 3 2 2 2 . 3 3 4 2 1 2 4 3 1 Engine 20 | 1 . 1 2 2 2 1 . 2 3 3 2 1 . . . . Core 11 | . . 2 1 . . 1 . 1 . . . . 1 4 . 1 Reactor 5 | . . . . . . . . . . 1 . . 1 . 3 . Propulsion 75 | 2 . 5 3 14 1 2 3 6 11 . 8 . 1 11 5 3 Treads 13 | . . 1 2 3 1 . 1 . . . . . . 3 . 2 Leg 10 | . . . . . . . . 6 4 . . . . . . . Wheel 50 | 2 . 4 1 11 . 2 1 . 7 . 7 . 1 8 5 1 Hover 2 | . . . . . . . 1 . . . 1 . . . . . Flight . | . . . . . . . . . . . . . . . . . Utility 83 | 1 1 5 3 8 1 2 . 2 17 6 14 . 1 8 9 5 Device 37 | . 1 3 3 4 . 1 . . 7 1 3 . . 8 3 3 Storage 9 | 1 . 2 . . 1 . . . . . 1 . . . 3 1 Processor 2 | . . . . . . . . . . . 1 . . . . 1 Hackware 10 | . . . . . . . . . 4 1 2 . . . 3 . Protection 25 | . . . . 4 . 1 . 2 6 4 7 . 1 . . . Artifact . | . . . . . . . . . . . . . . . . . Weapon 132 | 2 . 6 5 19 1 6 . 7 23 11 18 . 2 18 13 1 Energy Gun 29 | 1 . 1 1 5 1 . . 2 6 3 2 . . 5 2 . Energy Cannon 8 | . . . 1 1 . . . 1 3 . . . 1 . . 1 Ballistic Gun 63 | 1 . 5 3 11 . 5 . 4 6 5 10 . . 8 5 . Ballistic Cannon 3 | . . . . 1 . . . . . . . . 1 1 . . Launcher 4 | . . . . 1 . . . . 1 . . . . . 2 . Special Weapon 14 | . . . . . . . . . 3 2 6 . . . 3 . Impact Weapon . | . . . . . . . . . . . . . . . . . Slashing Weapon 11 | . . . . . . 1 . . 4 1 . . . 4 1 . Piercing Weapon . | . . . . . . . . . . . . . . . . . Special Melee Weapon . | . . . . . . . . . . . . . . . . . Unidentified Prototypes 10 | . . 1 1 4 . . 1 . 1 . 2 . . . . . Parts Lost 127 | . . 11 3 9 . 5 . 10 12 5 10 . 7 21 34 . Power 21 | . . 2 . 1 . 1 . 3 1 2 1 . 2 2 6 . Propulsion 37 | . . 4 1 2 . 2 . 2 4 1 4 . 3 6 8 . Utility 26 | . . 2 1 2 . 2 . 1 3 . 2 . 1 5 7 . Weapon 43 | . . 3 1 4 . . . 4 4 2 3 . 1 8 13 . Highest Loss Streak 13 | . . 4 1 5 . 1 . 7 5 1 3 . 7 6 13 . Average Slot Usage (%) 90 | . 99 88 91 98 100 91 95 88 94 98 95 94 85 81 77 40 Engine 7 | . 14 5 1 8 15 14 7 6 11 12 10 5 1 . . . Core 3 | . . 2 6 . . . 7 6 . . . . 2 9 11 4 Treads 2 | . . . 9 10 7 7 7 . . . . . . 2 2 5 Leg 1 | . . . . . . . . 11 6 . . . . . . . Wheel 17 | . 28 18 19 24 23 15 18 8 15 25 20 23 11 13 11 4 Device 13 | . 13 17 17 11 7 6 7 7 14 13 16 17 17 15 16 9 Storage 13 | . 14 21 18 18 15 15 15 15 13 13 11 11 11 10 10 4 Processor 1 | . . . . . . . . . . . 2 5 5 5 4 2 Hackware 1 | . . . . . . . . . 1 1 1 . . . 6 5 Protection 6 | . . . . 6 7 6 7 7 8 11 10 11 10 4 . . Energy Gun 2 | . 14 1 . 1 7 1 . 2 3 4 3 . . 2 3 . Ballistic Gun 12 | . 14 20 15 16 15 20 23 14 12 8 8 17 13 9 3 . Special Weapon 1 | . . . . . . . . . 1 4 3 . . . 2 . Naked Turns . | . . . . . . . . . . . . . . . . . Heaviest Build 122 | 10 11 77 83 87 92 99 95 100 111 110 116 117 122 122 107 42 Greatest Support 77 | 32 32 32 36 42 36 38 40 40 77 40 64 64 64 58 64 16 Greatest Overweight (x) 25 | 1 . 4 3 4 2 6 3 5 10 3 4 1 7 4 25 2 Average Overweight (x) 2 | . . 2 2 2 2 3 2 2 3 2 2 1 3 2 2 1 Largest Inventory Capacity 36 | 6 6 20 20 20 20 20 20 20 20 20 20 20 20 20 36 4 Average Capacity 19 | 5 6 19 20 20 20 20 20 20 20 20 20 20 20 20 19 4 Most Carried 20 | 3 6 16 15 20 20 20 20 20 20 20 20 17 16 20 19 4 Average Carried 16 | . 3 10 11 18 19 19 19 19 16 19 17 15 13 16 12 2 Final Capacity 20 | 6 6 20 20 20 20 20 20 20 20 20 20 20 20 20 4 4 Final Carried 20 | 1 6 13 14 20 20 20 20 20 18 20 15 16 13 18 4 2 Class Distribution -------------------- 41% | Scavenger-Mutant 29% | Scavenger-Tank 11% | Hauler-Mutant 5% | Hauler-Tank 5% | Mutant 3% | Bothacker-Mutant Dominant Class ---------------- Mutant | -10/Materials Hauler-Mutant | -9/Materials Scavenger-Mutant | -8/Materials Scavenger-Mutant | -8/Storage Scavenger-Tank | -7/Factory Scavenger-Tank | -7/Garrison Hauler-Tank | -7/Factory Scavenger-Tank | -7/Garrison Scavenger-Tank | -6/Factory Scavenger-Mutant | -6/Extension Scavenger-Mutant | -5/Factory Scavenger-Tank | -5/Upper Caves Scavenger-Tank | -5/Upper Caves Scavenger-Tank | -4/Factory Scavenger-Mutant | -4/Garrison Mutant | -4/Factory Resources | -11 -10 -9 -8 -8 -7 -7 -7 -7 -6 -6 -5 -5 -5 -4 -4 -4 ----------- Run | Scr Mat Mat Mat Sto Fac Gar Fac Gar Fac Ext Fac Upp Upp Fac Gar Fac Matter Collected 8540 | 238 36 768 293 759 111 470 . 674 1327 800 1097 35 128 1354 440 10 Remotely 318 | . . . . . . . . . . . . . . 177 141 . Salvage Created 9260 | . 45 1204 309 1259 . 544 . 978 902 378 1079 . 102 1934 526 . Parts 483 | . 2 66 22 69 . 38 . 50 54 19 56 . 4 89 14 . Haulers Intercepted 2 | . . 1 . 1 . . . . . . . . . . . . Recyclers Shooed 16 | . . . . 2 . . . . . 1 8 . . 5 . . Parts Field Recycled . | . . . . . . . . . . . . . . . . . Retrieved Matter . | . . . . . . . . . . . . . . . . . Parts Self-Destructed 3 | . . . . . . . . . . . . . 3 . . . Prevented . | . . . . . . . . . . . . . . . . . Kills | -11 -10 -9 -8 -8 -7 -7 -7 -7 -6 -6 -5 -5 -5 -4 -4 -4 ------- Run | Scr Mat Mat Mat Sto Fac Gar Fac Gar Fac Ext Fac Upp Upp Fac Gar Fac Combat Hostiles Destroyed 149 | . 1 20 6 21 . 17 . 23 15 5 10 . 2 21 8 . Melee 1 | . . . . . . . . . . . . . . . 1 . Guns 129 | . 1 20 5 21 . 17 . 13 13 5 10 . 2 17 5 . Cannons 16 | . . . 1 . . . . 10 1 . . . . 4 . . AOE 2 | . . . . . . . . . 1 . . . . . 1 . Classes Destroyed 16 | . 1 6 2 3 . 1 . . 2 1 . . . . . . Worker 10 | . . 1 . 2 . . . . 4 . . . . 3 . . Builder 11 | . . . . 1 . . . . 2 . 2 . . 6 . . Tunneler 6 | . . . 1 . . . . . 3 . 1 . . 1 . . Hauler 2 | . . 1 . 1 . . . . . . . . . . . . Recycler 11 | . . 3 . 1 . . . . . . 4 . . 3 . . Mechanic 1 | . . . . . . . . . 1 . . . . . . . Watcher 5 | . . 2 . 1 . . . 1 . 1 . . . . . . Swarmer 30 | . . 3 . . . 13 . 9 3 . 1 . . . 1 . Saboteur 1 | . . . . . . . . . 1 . . . . . . . Grunt 61 | . 1 12 3 12 . 2 . 13 4 1 2 . . 8 3 . Duelist 5 | . . . . 1 . . . . 2 . . . . . 2 . Protector 1 | . . . . 1 . . . . . . . . . . . . Sentry 22 | . . 5 2 7 . . . . 1 3 1 . . 3 . . Hunter 11 | . . . 1 . . . . 1 2 . 1 . 2 2 2 . Programmer 18 | . . . . . . 2 . . 3 . 5 . . 8 . . Behemoth 1 | . . . . . . . . . . 1 . . . . . . Best Kill Streak 6 | . 1 6 4 5 . 4 . 5 4 2 3 . 1 5 2 . Combat Bots Only 5 | . 1 3 3 3 . 4 . 5 3 2 2 . 1 3 2 . Max Kills in Single Turn 2 | . 1 1 2 1 . 1 . 1 2 1 1 . 1 2 1 . Gunslinging . | . . . . . . . . . . . . . . . . . Exploded 1 | . . . . . . . . . 1 . . . . . 1 . Melee 1 | . . . . . . . . . . . . . . . 1 . Uniques/NPCs Destroyed . | . . . . . . . . . . . . . . . . . Combat | -11 -10 -9 -8 -8 -7 -7 -7 -7 -6 -6 -5 -5 -5 -4 -4 -4 -------- Run | Scr Mat Mat Mat Sto Fac Gar Fac Gar Fac Ext Fac Upp Upp Fac Gar Fac Damage Taken 17214 | . 34 1322 447 1730 . 1084 . 1490 2060 470 1270 . 822 2714 3638 133 Core 2304 | . . 211 35 260 . 50 . 208 159 33 77 . 69 347 781 74 Absorbed by Shields 276 | . . . . . . 4 . . . 193 . . . . 79 . Core Remaining (%) 74 | 100 100 47 . 46 . . . 63 . 77 . . 85 . . . Volleys Fired 754 | . 5 77 24 100 1 44 . 66 98 79 76 . 14 106 63 1 Largest 3 | . 2 2 2 2 3 3 . 3 3 3 3 . 3 3 3 1 Hottest 156 | . 70 60 83 92 107 107 . 152 140 125 140 . 129 156 153 110 Shots Fired 1601 | . 10 154 47 189 3 124 . 182 216 99 163 . 41 273 99 1 Gun 1411 | . 10 154 44 187 3 124 . 144 175 60 143 . 40 251 76 . Cannon 78 | . . . 3 2 . . . 38 11 . . . 1 22 . 1 Launcher 15 | . . . . . . . . . 5 . . . . . 10 . Special 97 | . . . . . . . . . 25 39 20 . . . 13 . Kinetic 1152 | . 5 145 44 156 2 109 . 121 128 29 109 . 40 210 54 . Thermal 297 | . 5 . 3 33 1 15 . 61 58 31 34 . . 34 22 . Explosive 9 | . . . . . . . . . 5 . . . . . 4 . Electromagnetic 46 | . . 9 . . . . . . . . . . 1 29 6 1 Robot Hit Streak 29 | . 2 15 10 29 2 17 . 10 10 13 14 . 7 14 20 . Robot Miss Streak 7 | . 5 3 2 3 1 4 . 7 4 4 6 . 3 5 2 2 Penetration Max 1 | . . . . . . . . . 1 1 1 . . 1 1 . Secondary Targets 25 | . . 6 1 . . 7 . 5 1 2 . . . 2 1 . Max Gunslinging Chain 1 | . . 1 1 . . 1 . 1 1 1 . . . 1 1 . Shots Hit Robots 1071 | . 3 115 35 140 2 71 . 91 138 84 124 . 27 169 72 . Core Hits 454 | . 3 45 15 57 1 32 . 47 56 39 49 . 6 76 28 . Critical Hits 25 | . . 1 1 1 . 1 . 1 1 1 3 . 1 13 1 . Critical Kills 10 | . . 1 1 . . . . . 1 . . . 1 6 . . Critical Parts Destroyed 14 | . . . . 1 . 1 . 1 . 1 3 . . 6 1 . Melee Attacks 38 | . . . . . . 1 . . 20 1 . . . 9 7 . Impact . | . . . . . . . . . . . . . . . . . Slashing 38 | . . . . . . 1 . . 20 1 . . . 9 7 . Piercing . | . . . . . . . . . . . . . . . . . Sneak Attacks . | . . . . . . . . . . . . . . . . . Combat Hostiles . | . . . . . . . . . . . . . . . . . Follow-up Attacks . | . . . . . . . . . . . . . . . . . Damage Inflicted 20216 | . 43 1581 556 2310 55 1057 . 1670 2374 1344 2628 . 505 4195 1898 . Guns 18023 | . 43 1577 509 2310 55 1057 . 1146 1747 1344 2497 . 470 3956 1312 . Cannons 987 | . . . 47 . . . . 524 211 . . . 35 170 . . Explosions 899 | . . . . . . . . . 416 . 131 . . 5 347 . Melee 303 | . . . . . . . . . . . . . . 64 239 . Ramming 4 | . . 4 . . . . . . . . . . . . . . Kinetic 13889 | . 18 1499 509 1889 35 937 . 866 1047 612 1801 . 470 3135 1071 . Thermal 4685 | . 25 . 47 421 20 120 . 804 911 732 827 . . 537 241 . Explosive 633 | . . . . . . . . . 416 . . . . . 217 . Electromagnetic 702 | . . 78 . . . . . . . . . . 35 459 130 . Impact . | . . . . . . . . . . . . . . . . . Slashing 303 | . . . . . . . . . . . . . . 64 239 . Piercing . | . . . . . . . . . . . . . . . . . Highest Corruption 10 | . . . . . . 1 1 1 1 1 5 5 5 9 9 10 Average Corruption 3 | . . . . . . 1 1 1 1 1 2 5 5 5 9 9 Corruption Purged . | . . . . . . . . . . . . . . . . . Effects 139 | . . . . . . 1 2 8 . 3 18 7 9 36 46 9 Message Errors 31 | . . . . . . . 2 3 . 2 3 1 1 5 13 1 Matter Fused 17 | . . . . . . . . . . . . 3 2 4 3 5 Heat Flow Errors 7 | . . . . . . . . . . . 1 1 . 1 4 . Energy Discharges 17 | . . . . . . . . . . . 6 1 . 3 5 2 Parts Rejected 4 | . . . . . . . . . . . . . . 2 2 . Data Loss (minor) 13 | . . . . . . 1 . 1 . . 3 . 1 . 6 1 Data Loss (major) 3 | . . . . . . . . . . . 1 1 . . 1 . Misfires 6 | . . . . . . . . . . . 2 . 1 2 1 . Targeting Errors 33 | . . . . . . . . 3 . 1 2 . 3 16 8 . Weapon Failures 8 | . . . . . . . . 1 . . . . 1 3 3 . Overload Shots . | . . . . . . . . . . . . . . . . . Overflow Damage 152 | . . . 14 . . . . . 9 . 87 . 25 . 17 . Projectiles 48 | . . . 14 . . . . . 9 . . . 25 . . . Explosions 104 | . . . . . . . . . . . 87 . . . 17 . Melee . | . . . . . . . . . . . . . . . . . Knockbacks 3 | . . . . . . . . . . . . . . 3 . . Impact . | . . . . . . . . . . . . . . . . . Kinetic 3 | . . . . . . . . . . . . . . 3 . . Secondary . | . . . . . . . . . . . . . . . . . Self-Inflicted Damage 135 | . . 2 . . . . . . 16 . 74 . . . 43 . Shots 4 | . . . . . . . . . 1 . 1 . . . 2 . Rammed 1 | . . 1 . . . . . . . . . . . . . . Targets Rammed 1 | . . 1 . . . . . . . . . . . . . . Kicked . | . . . . . . . . . . . . . . . . . Crushed . | . . . . . . . . . . . . . . . . . Highest Temperature 357 | . 16 6 344 22 . 196 . 198 357 24 196 201 . 213 242 20 Average Temperature 79 | . 9 4 186 8 . 68 . 95 92 9 120 120 . 60 64 20 Received Heat Transfer 3431 | . 18 468 153 792 . 96 . 504 387 98 108 . . 267 528 12 Effects 3 | . . . . . . . . . 3 . . . . . . . Shutdowns 1 | . . . . . . . . . 1 . . . . . . . Interference 1 | . . . . . . . . . 1 . . . . . . . Damage (minor) 1 | . . . . . . . . . 1 . . . . . . . Siege Activations . | . . . . . . . . . . . . . . . . . Robots Corrupted 1 | . . . . . . . . . . . . . . . 1 . Combat Hostiles 1 | . . . . . . . . . . . . . . . 1 . Parts Fried 5 | . . . . . . . . . . . . . . 2 3 . Impact Corruptions . | . . . . . . . . . . . . . . . . . Robots Melted . | . . . . . . . . . . . . . . . . . Combat Hostiles . | . . . . . . . . . . . . . . . . . Parts Melted 10 | . . . . . . . . 1 5 2 . . . 2 . . Heat Transferred 9088 | . 74 . 74 814 37 222 . 1350 1684 1598 1625 . . 1079 531 . Parts Sabotaged . | . . . . . . . . . . . . . . . . . Parts Stolen . | . . . . . . . . . . . . . . . . . Parts Stripped . | . . . . . . . . . . . . . . . . . Power Chain Reactions . | . . . . . . . . . . . . . . . . . Missiles Intercepted . | . . . . . . . . . . . . . . . . . Alert | -11 -10 -9 -8 -8 -7 -7 -7 -7 -6 -6 -5 -5 -5 -4 -4 -4 ------- Run | Scr Mat Mat Mat Sto Fac Gar Fac Gar Fac Ext Fac Upp Upp Fac Gar Fac Peak Influence 551 | . 58 334 297 247 45 551 289 520 475 306 142 . . 365 247 9 Initial 289 | . . 24 100 40 9 31 289 . 273 11 . . . 21 177 9 Average 138 | . 35 156 165 105 26 333 156 262 208 103 54 . . 113 153 9 Maximum Alert Level 2 | . . 1 1 1 . 2 1 2 2 1 . . . 1 1 . Low Security (%) 74 | 100 100 61 62 85 100 23 78 43 53 89 100 . . 79 69 100 Level 1 20 | . . 38 37 14 . 32 21 26 35 10 . . . 20 30 . Level 2 5 | . . . . . . 43 . 29 11 . . . . . . . Level 3 . | . . . . . . . . . . . . . . . . . Level 4 . | . . . . . . . . . . . . . . . . . Level 5 . | . . . . . . . . . . . . . . . . . High Security . | . . . . . . . . . . . . . . . . . Max Security . | . . . . . . . . . . . . . . . . . Squads Dispatched 30 | . 2 5 . 3 . . . . 7 2 4 . . 6 . 1 Investigation 2 | . . 2 . . . . . . . . . . . . . . Extermination 10 | . . . . . . . . . 4 . 3 . . 2 . 1 Reinforcement 11 | . 2 3 . 1 . . . . 1 2 1 . . 1 . . Assault 4 | . . . . 2 . . . . 2 . . . . . . . Garrison 3 | . . . . . . . . . . . . . . 3 . . Intercept . | . . . . . . . . . . . . . . . . . Construction Impeded 2 | . . . . . . . . . . . 1 . . 1 . . Haulers Reinforced . | . . . . . . . . . . . . . . . . . Stealth | -11 -10 -9 -8 -8 -7 -7 -7 -7 -6 -6 -5 -5 -5 -4 -4 -4 --------- Run | Scr Mat Mat Mat Sto Fac Gar Fac Gar Fac Ext Fac Upp Upp Fac Gar Fac Distress Signals 11 | . . 1 1 2 . . . . . 3 2 . . 2 . . Communications Jammed . | . . . . . . . . . . . . . . . . . Distress Signals . | . . . . . . . . . . . . . . . . . Times Spotted 277 | . 3 35 8 29 3 19 1 35 36 30 22 . 2 30 22 2 Peak Tracking Total 11 | . 1 6 3 6 2 4 1 5 11 8 7 . 2 4 5 2 Tactical Retreats 34 | . . 8 . 2 . 1 . 9 . 2 2 . . 4 6 . Traps | -11 -10 -9 -8 -8 -7 -7 -7 -7 -6 -6 -5 -5 -5 -4 -4 -4 ------- Run | Scr Mat Mat Mat Sto Fac Gar Fac Gar Fac Ext Fac Upp Upp Fac Gar Fac Traps Triggered 23 | . . 1 . 3 . 2 . 5 . 4 4 . . . 4 . Indirectly . | . . . . . . . . . . . . . . . . . Trap Hack Attempts . | . . . . . . . . . . . . . . . . . Triggered . | . . . . . . . . . . . . . . . . . Disarmed . | . . . . . . . . . . . . . . . . . Reprogrammed . | . . . . . . . . . . . . . . . . . Reused . | . . . . . . . . . . . . . . . . . Traps Extracted . | . . . . . . . . . . . . . . . . . Installed . | . . . . . . . . . . . . . . . . . Triggered 1 | . . 1 . . . . . . . . . . . . . . Machines | -11 -10 -9 -8 -8 -7 -7 -7 -7 -6 -6 -5 -5 -5 -4 -4 -4 ---------- Run | Scr Mat Mat Mat Sto Fac Gar Fac Gar Fac Ext Fac Upp Upp Fac Gar Fac Machines Disabled 16 | . . . . 2 . 2 . 2 . 2 3 . . 4 1 . Max in Single Turn 2 | . . . . 1 . 1 . 1 . 1 1 . . 2 1 . Garrison Access 1 | . . . . . . . 1 . . . . . . . . . Garrison Relay 5 | . . . . . . 2 . 2 . . . . . . 1 . Machines Sabotaged . | . . . . . . . . . . . . . . . . . Garrisons Compromised 1 | . . . . . . . . . 1 . . . . . . . Overloaded Fab Kills . | . . . . . . . . . . . . . . . . . Fab Network Shutdowns . | . . . . . . . . . . . . . . . . . Hacking | -11 -10 -9 -8 -8 -7 -7 -7 -7 -6 -6 -5 -5 -5 -4 -4 -4 --------- Run | Scr Mat Mat Mat Sto Fac Gar Fac Gar Fac Ext Fac Upp Upp Fac Gar Fac Machines Accessed 44 | . 4 5 3 6 2 . 4 . 5 5 5 . . 4 . 1 Terminals 29 | . 4 5 . 4 1 . 1 . 3 5 2 . . 3 . 1 Fabricators 3 | . . . . . . . 1 . 1 . 1 . . . . . Repair Stations 1 | . . . . 1 . . . . . . . . . . . . Recycling Units 3 | . . . 1 1 . . . . 1 . . . . . . . Scanalyzers 4 | . . . 2 . . . . . . . 2 . . . . . Garrison Access 4 | . . . . . 1 . 2 . . . . . . 1 . . Total Hacks 87 | . 10 6 9 14 3 . 7 . 11 11 7 . . 8 . 1 Successful 48 | . 5 . 8 8 2 . 6 . 6 5 3 . . 4 . 1 Failed 39 | . 5 6 1 6 1 . 1 . 5 6 4 . . 4 . . Catastrophic 12 | . 2 4 . 1 . . 1 . 1 1 2 . . . . . Database Lockouts . | . . . . . . . . . . . . . . . . . Manual 29 | . 6 6 . 4 2 . 1 . 2 3 1 . . 3 . 1 Terminals 60 | . 10 6 . 11 2 . 2 . 8 11 3 . . 6 . 1 Fabricators 5 | . . . . . . . 1 . 2 . 2 . . . . . Repair Stations 2 | . . . . 2 . . . . . . . . . . . . Recycling Units 3 | . . . 1 1 . . . . 1 . . . . . . . Scanalyzers 10 | . . . 8 . . . . . . . 2 . . . . . Garrison Access 7 | . . . . . 1 . 4 . . . . . . 2 . . Terminal Hacks 25 | . 5 . . 5 1 . 2 . 3 5 1 . . 2 . 1 Record 3 | . . . . . . . . . 1 . 1 . . 1 . . Robot Analysis 1 | . 1 . . . . . . . . . . . . . . . Prototype ID Bank 1 | . 1 . . . . . . . . . . . . . . . Open Door 4 | . . . . 2 . . . . . 2 . . . . . . Level Access Points 1 | . 1 . . . . . . . . . . . . . . . Branch Access Points 1 | . . . . . . . . . 1 . . . . . . . Terminal Index 2 | . . . . . 1 . . . . . . . . . . 1 Unreport Threat 8 | . 1 . . 3 . . 1 . 1 1 . . . 1 . . Security Status 2 | . . . . . . . 1 . . 1 . . . . . . Recall Reinforcements 2 | . 1 . . . . . . . . 1 . . . . . . Fabricator Hacks 4 | . . . . . . . . . 2 . 2 . . . . . Load Schematic 2 | . . . . . . . . . 1 . 1 . . . . . Build 2 | . . . . . . . . . 1 . 1 . . . . . Repair Station Hacks 2 | . . . . 2 . . . . . . . . . . . . Scan Component 1 | . . . . 1 . . . . . . . . . . . . Repair 1 | . . . . 1 . . . . . . . . . . . . Recycling Unit Hacks 1 | . . . 1 . . . . . . . . . . . . . Report Inventory 1 | . . . 1 . . . . . . . . . . . . . Scanalyzer 7 | . . . 7 . . . . . . . . . . . . . Insert Component 3 | . . . 3 . . . . . . . . . . . . . Analyze 4 | . . . 4 . . . . . . . . . . . . . Garrison Access Hacks 7 | . . . . . 1 . 4 . . . . . . 2 . . Unlock Access 3 | . . . . . 1 . 1 . . . . . . 1 . . Seal Access 1 | . . . . . . . 1 . . . . . . . . . Coupler Status 3 | . . . . . . . 2 . . . . . . 1 . . Unauthorized Hacks 2 | . . . . 1 . . . . 1 . . . . . . . Terminals . | . . . . . . . . . . . . . . . . . Fabricators . | . . . . . . . . . . . . . . . . . Repair Stations . | . . . . . . . . . . . . . . . . . Recycling Units 2 | . . . . 1 . . . . 1 . . . . . . . Reject 2 | . . . . 1 . . . . 1 . . . . . . . Scanalyzers . | . . . . . . . . . . . . . . . . . Garrison Access . | . . . . . . . . . . . . . . . . . Data Cores Recovered . | . . . . . . . . . . . . . . . . . Used . | . . . . . . . . . . . . . . . . . Hacking Detections 32 | . 3 5 3 2 1 . 3 . 5 4 4 . . 2 . . Full Trace Events . | . . . . . . . . . . . . . . . . . Feedback Events . | . . . . . . . . . . . . . . . . . Feedback Blocked . | . . . . . . . . . . . . . . . . . Robot Schematics Acquired . | . . . . . . . . . . . . . . . . . Robots Built . | . . . . . . . . . . . . . . . . . Matter . | . . . . . . . . . . . . . . . . . Time . | . . . . . . . . . . . . . . . . . Total Robot Build Rating . | . . . . . . . . . . . . . . . . . Part Schematics Acquired 3 | . . . 3 . . . . . . . . . . . . . Parts Built 2 | . . . . . . . . . 1 . 1 . . . . . Matter 204 | . . . . . . . . . 102 . 102 . . . . . Time 76 | . . . . . . . . . 51 . 25 . . . . . Total Part Build Rating 2 | . . . . . . . . . 1 . 1 . . . . . Parts Repaired 1 | . . . . 1 . . . . . . . . . . . . Time 32 | . . . . 32 . . . . . . . . . . . . Parts Recycled . | . . . . . . . . . . . . . . . . . Recycled Matter . | . . . . . . . . . . . . . . . . . Retrieved Matter . | . . . . . . . . . . . . . . . . . Retrieved Components . | . . . . . . . . . . . . . . . . . Parts Scanalyzed 3 | . . . 3 . . . . . . . . . . . . . Part Schematics Acquired 3 | . . . 3 . . . . . . . . . . . . . Parts Damaged 1 | . . . 1 . . . . . . . . . . . . . Bothacking | -11 -10 -9 -8 -8 -7 -7 -7 -7 -6 -6 -5 -5 -5 -4 -4 -4 ------------ Run | Scr Mat Mat Mat Sto Fac Gar Fac Gar Fac Ext Fac Upp Upp Fac Gar Fac Used RIF Installer 2 | . . . . . . 1 . 1 . . . . . . . . Program Shield 1 | . . . . . . . . 1 . . . . . . . . Robots Hacked 36 | . . . . . . . . . 13 4 12 . . . 7 . Non-combat 18 | . . . . . . . . . 7 2 9 . . . . . Combat 18 | . . . . . . . . . 6 2 3 . . . 7 . Robot Hacks Applied 53 | . . . . . . . . . 23 5 17 . . . 8 . parse_system 3 | . . . . . . . . . 1 . 1 . . . 1 . no_distress 3 | . . . . . . . . . 1 2 . . . . . . generate_echo 2 | . . . . . . . . . 1 . 1 . . . . . find_chute 4 | . . . . . . . . . 2 . 2 . . . . . hold_bot 1 | . . . . . . . . . . . 1 . . . . . ignore_repairs 1 | . . . . . . . . . 1 . . . . . . . map_walls 7 | . . . . . . . . . 3 . 4 . . . . . map_earth 1 | . . . . . . . . . 1 . . . . . . . find_fabricator 1 | . . . . . . . . . . . 1 . . . . . find_recycling 3 | . . . . . . . . . 2 . 1 . . . . . ignore_parts 3 | . . . . . . . . . 1 . 2 . . . . . check_alert 1 | . . . . . . . . . . 1 . . . . . . map_route 2 | . . . . . . . . . 1 . 1 . . . . . mark_security 1 | . . . . . . . . . 1 . . . . . . . relay_feed 2 | . . . . . . . . . 1 . 1 . . . . . broadcast_data 1 | . . . . . . . . . . 1 . . . . . . overload_power 1 | . . . . . . . . . . . . . . . 1 . reboot_system 2 | . . . . . . . . . 1 . . . . . 1 . overwrite_iff 1 | . . . . . . . . . 1 . . . . . . . streamctrl_high 1 | . . . . . . . . . . . . . . . 1 . formatsys_high 12 | . . . . . . . . . 5 1 2 . . . 4 . Relay Couplers Released 22 | . . . . . . 8 . 9 1 . . . . . 4 . Machine Destruction 22 | . . . . . . 8 . 9 1 . . . . . 4 . Attached 10 | . . . . . . . . . 4 1 2 . . . 3 . Robots Rewired 10 | . . . . . . . . . . 10 . . . . . . Allies Hacked . | . . . . . . . . . . . . . . . . . Hacks Repelled . | . . . . . . . . . . . . . . . . . Allies | -11 -10 -9 -8 -8 -7 -7 -7 -7 -6 -6 -5 -5 -5 -4 -4 -4 -------- Run | Scr Mat Mat Mat Sto Fac Gar Fac Gar Fac Ext Fac Upp Upp Fac Gar Fac Total Allies 39 | . . . . 2 . . . . 18 12 2 . . . 5 . Largest Group 9 | . . . . 2 . . . . 9 8 2 . . . 2 . Highest-Rated Group 337 | . . . . 62 . . . . 223 337 176 . . . 94 . Highest-Rated Ally 156 | . . . . 31 . . . . 47 156 156 . . . 47 . Total Orders 3 | . . . . 1 . . . . . . . . . . 2 . ROAM 1 | . . . . . . . . . . . . . . . 1 . FOLLOW 1 | . . . . . . . . . . . . . . . 1 . EXPLORE 1 | . . . . 1 . . . . . . . . . . . . Ally Attacks 172 | . . . . 5 . . . . 58 80 12 . . . 17 . Total Damage 3327 | . . . . 86 . . . . 988 1683 385 . . . 185 . Kills 27 | . . . . 1 . . . . 4 18 4 . . . . . Allies Corrupted . | . . . . . . . . . . . . . . . . . Allies Melted . | . . . . . . . . . . . . . . . . . Intel | -11 -10 -9 -8 -8 -7 -7 -7 -7 -6 -6 -5 -5 -5 -4 -4 -4 ------- Run | Scr Mat Mat Mat Sto Fac Gar Fac Gar Fac Ext Fac Upp Upp Fac Gar Fac Robot Analysis Total 1 | . 1 . . . . . . . . . . . . . . . Derelict Logs Recovered 1 | . . . . . . . . . . . . 1 . . . . Drone Launches 12 | . . . . 12 . . . . . . . . . . . . Drone Recoveries . | . . . . . . . . . . . . . . . . . Exploration | -11 -10 -9 -8 -8 -7 -7 -7 -7 -6 -6 -5 -5 -5 -4 -4 -4 ------------- Run | Scr Mat Mat Mat Sto Fac Gar Fac Gar Fac Ext Fac Upp Upp Fac Gar Fac Turns Passed 12638 | 55 198 940 529 1321 325 533 447 707 1804 826 1972 319 135 1226 1010 291 Spaces Moved 6939 | 41 123 484 369 536 273 278 312 309 927 554 1088 285 63 580 465 252 Core 68 | 16 . . . . . . . . . . . . . . 22 30 Treads 163 | . . . . 98 . . 61 . . . . . . 4 . . Legs 61 | . . . . . . . . 8 53 . . . . . . . Wheels 6647 | 25 123 484 369 438 273 278 251 301 874 554 1088 285 63 576 443 222 Hover . | . . . . . . . . . . . . . . . . . Flight . | . . . . . . . . . . . . . . . . . Fastest Speed 50 | 50 100 100 96 100 106 106 110 115 100 100 95 110 110 105 50 50 Average Speed 116 | 90 100 121 111 135 106 123 134 132 119 101 107 110 130 120 120 105 Slowest Speed 1300 | 100 100 140 120 240 106 160 220 270 280 110 130 110 170 205 1300 120 Overloaded Moves . | . . . . . . . . . . . . . . . . . Propulsion Burnouts . | . . . . . . . . . . . . . . . . . Robots Hopped . | . . . . . . . . . . . . . . . . . Cave-ins Triggered . | . . . . . . . . . . . . . . . . . Exploration Rate (%) 30 | 3 26 44 25 95 8 56 7 48 19 56 21 53 6 10 43 5 Regions Visited 16 Branch Regions 4 Pre-discovered Areas . | . . . . . . . . . . . . . . . . . Known Exits Taken 8 | . 1 . . . 1 . 1 . 1 . 1 1 1 1 . . Unknown Exits Taken 5 | 1 . 1 1 1 . . . . . 1 . . . . . . Scrap Searched 2 | . . . . . . . . . . . . 1 1 . . . Spaces Dug 23 | . . . . 1 . . . . 15 . . . . 7 . . Terrain Destroyed 178 | . . . . 1 . . . . 30 1 47 . 2 88 9 . Melee 22 | . . . . . . . . . 15 . . . . 7 . . Projectile 95 | . . . . 1 . . . . . 1 7 . 2 81 3 . AOE 61 | . . . . . . . . . 15 . 40 . . . 6 . Terrain Rammed . | . . . . . . . . . . . . . . . . . Walls Destroyed . | . . . . . . . . . . . . . . . . . Machines Disabled . | . . . . . . . . . . . . . . . . . Actions | -11 -10 -9 -8 -8 -7 -7 -7 -7 -6 -6 -5 -5 -5 -4 -4 -4 --------- Run | Scr Mat Mat Mat Sto Fac Gar Fac Gar Fac Ext Fac Upp Upp Fac Gar Fac Total 10153 | 58 189 692 442 944 309 383 342 494 1442 737 1762 290 88 883 822 276 Wait 1550 | 5 55 71 15 209 10 12 12 29 287 21 510 3 2 100 206 3 Move 6925 | 40 122 483 368 535 273 277 312 308 926 553 1087 284 62 580 463 252 Hop . | . . . . . . . . . . . . . . . . . Pick Up 293 | 7 6 30 14 38 11 13 7 19 34 16 31 2 3 39 14 9 Fast Attach 6 | . . . . . . . . 1 1 2 2 . . . . . Attach 228 | 6 1 19 11 24 3 8 2 11 33 8 27 1 6 30 28 10 Detach 1 | . . . . . . . . . . . . . . . 1 . Swap 92 | . . . 3 19 2 4 1 6 20 11 13 . . 11 2 . Drop 137 | . . 11 7 14 9 8 8 14 20 13 15 . 1 8 8 1 Fire 754 | . 5 77 24 100 1 44 . 66 98 79 76 . 14 106 63 1 Melee 38 | . . . . . . 1 . . 20 1 . . . 9 7 . Ram 1 | . . 1 . . . . . . . . . . . . . . Kick . | . . . . . . . . . . . . . . . . . Crush . | . . . . . . . . . . . . . . . . . Escape Stasis 115 | . . . . . . 16 . 40 . 32 . . . . 27 . Rewire 8 | . . . . . . . . . 3 1 1 . . . 3 . Trap . | . . . . . . . . . . . . . . . . . Miscellaneous 5 | . . . . 5 . . . . . . . . . . . . Route ------- -11/Scrapyard -10/Materials (discovered 3 exits: *Mat x3) -9/Materials (discovered 2 exits: *Mat / [*Min]) -8/Materials -8/Storage -7/Factory -7/Garrison (discovered 2 exits: *Fac x2) -7/Factory -7/Garrison -6/Factory (discovered 4 exits: *Low x2 / *Ext x2) -6/Extension -5/Factory -5/Upper Caves -5/Upper Caves -4/Factory -4/Garrison -4/Factory History --------- Turn | Location | Event 11 | -11/Scrapyard | Discovered new exit (range 15) 56 | -11/Scrapyard | Entered Materials 122 | -10/Materials | Identified exit to Materials 254 | -10/Materials | Entered another Materials area 254 | -9/Materials | Evolved 2 slots: Utility x2 540 | -9/Materials | Discovered new exit (range 10) 596 | -9/Materials | Build established: Hauler-Mutant 782 | -9/Materials | Discovered new exit (range 10) 1069 | -9/Materials | Core integrity fell below 50% 1074 | -9/Materials | Lost 4 parts (1p2n1w) 1194 | -9/Materials | Entered another Materials area 1194 | -8/Materials | Evolved 2 slots: Propulsion x2 1447 | -8/Materials | Discovered new exit (range 5) 1723 | -8/Materials | Entered Storage 1743 | -8/Storage | Build established: Scavenger-Mutant 1864 | -8/Storage | Met a pair of Derelict thieves 2014 | -8/Storage | Lost 5 parts (1p1u3w) 2696 | -8/Storage | Core integrity fell below 50% 2782 | -8/Storage | Repaired Arm. Wheel 2924 | -8/Storage | Discovered new exit (range 25) 3044 | -8/Storage | Entered Factory 3044 | -7/Factory | Evolved 2 slots: Power x1, Weapon x1 3312 | -7/Factory | Build established: Scavenger-Tank 3369 | -7/Factory | Identified exit to Garrison 3369 | -7/Factory | Entered Garrison 3394 | -7/Garrison | Triggered checkpoint 3425 | -7/Garrison | Garrison Relay disabled 3510 | -7/Garrison | Triggered checkpoint 3553 | -7/Garrison | Discovered new exit (range 8) 3568 | -7/Garrison | Installed Relay Interface Framework 3657 | -7/Garrison | Triggered checkpoint 3752 | -7/Garrison | Triggered checkpoint 3818 | -7/Garrison | Garrison Relay disabled 3888 | -7/Garrison | Discovered new exit (range 13) 3902 | -7/Garrison | Entered Factory 4349 | -7/Factory | Identified exit to Garrison 4349 | -7/Factory | Entered Garrison 4466 | -7/Garrison | Lost 7 parts (2p2n1u2w) 4585 | -7/Garrison | Triggered checkpoint 4615 | -7/Garrison | Garrison Relay disabled 4655 | -7/Garrison | Triggered checkpoint 4836 | -7/Garrison | Triggered checkpoint 4954 | -7/Garrison | Discovered new exit (range 8) 4974 | -7/Garrison | Expanded RIF knowledge: Program Shield 4997 | -7/Garrison | Triggered checkpoint 5022 | -7/Garrison | Garrison Relay disabled 5056 | -7/Garrison | Entered Factory 5056 | -6/Factory | Evolved 2 slots: Utility x2 5315 | -6/Factory | Identified exit to Lower Caves 5315 | -6/Factory | Identified exit to Extension 5406 | -6/Factory | First assault squad dispatched 5627 | -6/Factory | Lost 3 parts (1p1n1w) 5672 | -6/Factory | Lost 5 parts (2n1u2w) 6276 | -6/Factory | Lost 3 parts (2u1w) 6451 | -6/Factory | Fabricated Grenade Launcher (x1) 6860 | -6/Factory | Entered Extension 7096 | -6/Extension | Rescued A7 7269 | -6/Extension | Spotted B-75 Beast 7308 | -6/Extension | Build established: Scavenger-Mutant 7608 | -6/Extension | Spotted B-75 Beast 7627 | -6/Extension | Destroyed B-75 Beast 7683 | -6/Extension | Discovered new exit (range 3) 7685 | -6/Extension | Disrupted transfer network 7686 | -6/Extension | Entered Factory 7686 | -5/Factory | Accompanied by 2 allies (A7) 7686 | -5/Factory | Evolved 2 slots: Utility x2 7924 | -5/Factory | Fabricated Hcp. Storage Unit (x1) 8443 | -5/Factory | Discovered new exit (range 11) 9296 | -5/Factory | Lost 3 parts (2n1w) 9320 | -5/Factory | Identified exit to Upper Caves 9658 | -5/Factory | Entered Upper Caves 9904 | -5/Upper Caves | Learned Factory stockpile data 9948 | -5/Upper Caves | Build established: Scavenger-Tank 9971 | -5/Upper Caves | Discovered new exit (range 6) 9976 | -5/Upper Caves | Identified exit to Upper Caves 9977 | -5/Upper Caves | Entered another Upper Caves area 10045 | -5/Upper Caves | Discovered new exit (range 10) 10054 | -5/Upper Caves | Lost 7 parts (2p3n1u1w) 10059 | -5/Upper Caves | Identified exit to Factory 10112 | -5/Upper Caves | Entered Factory 10112 | -4/Factory | Evolved 2 slots: Power x1, Utility x1 10366 | -4/Factory | Garrison activated, responded to threat 10623 | -4/Factory | Lost 5 parts (1p2n2w) 10691 | -4/Factory | Lost 6 parts (1n3u2w) 11031 | -4/Factory | Lost 3 parts (1n2w) 11259 | -4/Factory | Lost 3 parts (1n1u1w) 11338 | -4/Factory | Identified exit to Garrison 11338 | -4/Factory | Entered Garrison 11374 | -4/Garrison | Triggered checkpoint 11421 | -4/Garrison | Garrison Relay disabled 11491 | -4/Garrison | Spotted B-86 Titan 11496 | -4/Garrison | Triggered checkpoint 11724 | -4/Garrison | Triggered checkpoint 11825 | -4/Garrison | Lost 5 parts (2n3w) 11953 | -4/Garrison | Lost 3 parts (1n2w) 12078 | -4/Garrison | Triggered checkpoint 12104 | -4/Garrison | Core integrity fell below 50% 12153 | -4/Garrison | Lost 8 parts (4p1n1u2w) 12196 | -4/Garrison | Discovered new exit (range 8) 12203 | -4/Garrison | Identified exit to Factory 12228 | -4/Garrison | Triggered checkpoint 12310 | -4/Garrison | Core integrity fell below 20% 12344 | -4/Garrison | Lost 13 parts (2p2n5u4w) 12348 | -4/Garrison | Entered Factory 12595 | -4/Factory | Build established: Mutant 12638 | -4/Factory | System corruption reached 10% 12639 | -4/Factory | Destroyed by P-70 Sage via exploding Fusion Modulator Last Messages --------------- 12395_ Acquired Neutrino Core. 12399_ Acquired Adv. Medium Treads. 12427_ System corrupted: Matter fused (-7). 12429_ K-01 Serf collects debris. 12458_ System corrupted: Matter fused (-9). 12460_ Acquired Adv. Signal Interpreter. 12467_ Acquired Adv. ECM Suite. 12482_ System corrupted: Energy discharge (-110). 12510_ Acquired Hvy. Disruptor Cannon. 12526_ T| U 1CXM:WV1FS4YYMO3< 5GDJZCC,MEJI MZ 12535_ Acquired Adv. Medium Treads. 12556_ System corrupted: Matter fused (-6). 12561_ Connecting with Terminal... >>Index(Terminals) Found 20 terminals. Downloaded coordinate data. 12573_ System corrupted: Matter fused (-7). 12598_ ALERT: Rogue bot located, Programmers report to Factory Zone 7Y. 12613_ System corrupted: Component data lost. 12639_ Fusion Modulator explodes. Map ----- +----------------------------------------------------+ | # ## #?????# # #????????????? | | # ## #?????# # #????????????? | | # ## #?????# ##########????????????? | | ##+#### #?????# #?????????????????????? | | + #?????# #?????????????????????? | | ##############?????# #?????????????????????? | | #################### #?????????????????????? | | #?????????????????????? | | ###################### ###+#?????????????????????? | | ?????????????????????# #?????????????????????????? | | ?????????????????????# #?????????????????????????? | | ?????????????????????# #?????????????????????????? | | ?????????????????????# #?????????????????????????? | | ?????????????????????# #?????????????????????????? | | ?????????????????????# #?????????????????????????? | | ?????????????????????# #?????????????????????????? | | ?????????????????????# #?????????????????????????? | | ?????????????????????# #?????????????????????????? | | ?????????????????????# #?????????????????????????? | | ?????????????????????# #?????????????????????????? | | ?????????????????????# #???????#?????????????????? | | ?????????????????????# #?????? #?????????????????? | | ?????????????????????# #???##;;##;#####??????????? | | ?????????????????????# #?? !! #??????????? | | ?????????????????????# ### !! #??????????? | | ?????????????????????#pp @ ! +??????????? | | ?????????????????????# ##; #??????????? | | ?????????????????????# #?? #??????????? | | ????????????????????? #???;;;;;;######??????????? | | ????????????????????## ??? ???????????????? | | ?????????????????????# ???? ?????????????? | | ?????????????????????# ???? ???????????? | | ?????????????????????# ?????""" """ ""??????????? | | ?????????????????????# ?????""" """ "???????????? | | ?????????????????????? ??????"" ""??????????????? | | ?????????????????????? ????????? ??????????????? | | ?????????????????????? ????????????????????????? | | ?????????????????????? ????????????????????????? | | ??????????????????????###????????????????????????? | | ?????????????????????????????????????????????????? | | ?????????????????????????????????????????????????? | | ?????????????????????????????????????????????????? | | ?????????????????????????????????????????????????? | | ?????????????????????????????????????????????????? | | ?????????????????????????????????????????????????? | | ?????????????????????????????????????????????????? | | ?????????????????????????????????????????????????? | | ?????????????????????????????????????????????????? | | ?????????????????????????????????????????????????? | | ?????????????????????????????????????????????????? | +----------------------------------------------------+ Best States ------------- Heat Dissipation 119 Coolant Potential 80 Energy Generation 47 Energy Capacity 460 Matter Stores 550 Matter Capacity 550 Sight Range 16 Robot Scan Range 13 Terrain Scan Range 20 Terrain Scan Density 10 Jamming Range 16 Power Amplification 20 Armor Coverage 450 Resistance: TH 30 Power Shielding 66 Propulsion Shielding 66 Evasion (%) 50 Recoil Reduction 1 Relay Coupler Types 37 Relay Coupler Value 2 Item Schematics ----------------- Hcp. Storage Unit | -8/Materials | Scanalyzed Disposable Heat Sink | -8/Materials | Scanalyzed Grenade Launcher | -8/Materials | Scanalyzed Robot Schematics ------------------ None Fabricated ------------ Grenade Launcher | x1 | -6/Factory Hcp. Storage Unit | x1 | -5/Factory Alien Tech Used ----------------- None Achievements -------------- Gun Specialist Challenges ------------ None Game ------ Seed CoilDeliveryNanoactuators Manual? 0 Play Time 03:13:10 Cumulative 61.6 hours Start 2021.04.07 @ 23:31:09 End 2021.04.08 @ 06:25:09 Sessions 3 Manual Loads 0 Difficulty Rogue Special Mode None Game No. 27 Rogue 27 Adventurer 0 Explorer 0 Win Type - Total 0 Types 0/0/0/0/0/0/0/0/0 Lore% 43 Gallery% 49 Achievement% 37 Wizard Run 0 Options --------- ASCII 0 Keyboard 0 Movement Mouse Keybinds 0 Fullscreen 2 Font 12/Smallcaps Map View 83x54 Tactical HUD 1 Map Filters NONE Filters NONE Steam X RUN: 9ef4776a-047a-43fc-b7e4-606123a0b48d